fUST/lending_fUST_20250220
["ID","MTS","AMOUNT","RATE_DAILY","PERIOD"]
[353723685,1739998246496,-500.0,0.0001378,2]
[353723687,1739998246506,-500.0,0.0001378,2]
[353723689,1739998246515,-500.0,0.0001378,2]
[353723691,1739998246524,-500.0,0.0001378,2]
[353723693,1739998246535,-544.44013558,0.0001378,2]
[353723695,1739998246544,-500.0,0.0001378,2]
[353723697,1739998246553,-500.0,0.0001378,2]
[353723699,1739998246562,-500.0,0.0001378,2]
[353723701,1739998246572,-500.0,0.0001378,2]
[353723703,1739998246581,-500.0,0.0001378,2]
[353723705,1739998246591,-500.0,0.0001378,2]
[353723706,1739998246600,-500.0,0.0001378,2]
[353723708,1739998246609,-500.0,0.0001378,2]
[353723710,1739998246618,-500.0,0.0001378,2]
[353723713,1739998246629,-509.18,0.0001378,2]
[353723714,1739998246639,-325.35454356,0.0001378,2]
[353723716,1739998246650,-500.0,0.0001378,2]
[353723718,1739998246660,-500.0,0.0001378,2]
[353723721,1739998246671,-500.0,0.0001378,2]
[353723723,1739998246681,-500.0,0.0001378,2]
[353723725,1739998246691,-500.0,0.0001378,2]
[353723727,1739998246701,-500.21296077,0.0001378,2]
[353723729,1739998246710,-500.0,0.0001378,2]
[353723730,1739998246719,-500.0,0.0001378,2]
[353723732,1739998246731,-500.0,0.0001378,2]
[353723735,1739998246740,-500.0,0.0001378,2]
[353723736,1739998246749,-500.0,0.0001378,2]
[353723738,1739998246759,-500.0,0.0001378,2]
[353723740,1739998246768,-500.0,0.0001378,2]
[353723742,1739998246778,-502.132,0.0001378,2]
[353723744,1739998246788,-500.0,0.0001378,2]
[353723746,1739998246797,-500.0,0.0001378,2]
[353723748,1739998246806,-500.0,0.0001378,2]
[353723750,1739998246815,-500.0,0.0001378,2]
[353723752,1739998246825,-500.0,0.0001378,2]
[353723754,1739998246835,-500.0,0.0001378,2]
[353723756,1739998246845,-500.0,0.0001378,2]
[353723758,1739998246854,-500.0,0.0001378,2]
[353723760,1739998246864,-508.08980421,0.0001378,2]
[353723762,1739998246879,-500.0,0.0001378,2]
[353723764,1739998246888,-500.0,0.0001378,2]
[353723766,1739998246898,-500.0,0.0001378,2]
[353723768,1739998246907,-500.0,0.0001378,2]
[353723770,1739998246918,-500.0,0.0001378,2]
[353723772,1739998246928,-500.88818774,0.0001378,2]
[353723774,1739998246937,-735.72,0.0001378,2]
[353723776,1739998246947,-500.0,0.0001378,2]
[353723778,1739998246957,-500.0,0.0001378,2]
[353723780,1739998246967,-500.0,0.0001378,2]
[353723782,1739998246976,-500.81815628,0.0001378,2]
[353723784,1739998246985,-500.0,0.0001378,2]
[353723786,1739998246995,-500.0,0.0001378,2]
[353723788,1739998247004,-500.59758062,0.0001378,2]
[353723790,1739998247014,-600.64400475,0.0001378,2]
[353723792,1739998247023,-503.31,0.0001378,2]
[353723794,1739998247033,-500.0,0.0001378,2]
[353723796,1739998247043,-500.0,0.0001378,2]
[353723798,1739998247053,-500.0,0.0001378,2]
[353723800,1739998247062,-500.0,0.0001378,2]
[353723802,1739998247072,-181.08260076,0.0001378,2]
[353723804,1739998247081,-500.0,0.0001378,2]
[353723806,1739998247090,-500.0,0.0001378,2]
[353723808,1739998247099,-500.0,0.0001378,2]
[353723810,1739998247109,-500.0,0.0001378,2]
[353723812,1739998247119,-167.12378818,0.0001378,2]
[353723814,1739998247128,-500.0,0.0001378,2]
[353723816,1739998247138,-500.0,0.0001378,2]
[353723818,1739998247147,-500.0,0.0001378,2]
[353723820,1739998247158,-500.0,0.0001378,2]
[353723822,1739998247167,-500.0,0.0001378,2]
[353723824,1739998247177,-500.84536048,0.0001378,2]
[353723826,1739998247188,-500.0,0.0001378,2]
[353723828,1739998247197,-500.0,0.0001378,2]
[353723830,1739998247207,-532.29,0.0001378,2]
[353723832,1739998247216,-500.0,0.0001378,2]
[353723834,1739998247225,-500.0,0.0001378,2]
[353723836,1739998247235,-500.0,0.0001378,2]
[353723838,1739998247244,-770.11,0.0001378,2]
[353723840,1739998247254,-500.0,0.0001378,2]
[353723842,1739998247263,-500.0,0.0001378,2]
[353723844,1739998247272,-500.0,0.0001378,2]
[353723846,1739998247282,-1000.0,0.0001378,2]
[353723848,1739998247292,-500.0,0.0001378,2]
[353723850,1739998247301,-500.0,0.0001378,2]
[353723852,1739998247312,-537.1436798,0.0001378,2]
[353723854,1739998247321,-469.29098641,0.0001378,2]
[353723856,1739998247330,-500.0,0.0001378,2]
[353723858,1739998247339,-500.0,0.0001378,2]
[353723860,1739998247348,-500.0,0.0001378,2]
[353723862,1739998247357,-500.0,0.0001378,2]
[353723864,1739998247367,-500.0,0.0001378,2]
[353723873,1739998247376,-500.0,0.0001378,2]
[353723875,1739998247452,-500.0,0.0001378,2]
[353723877,1739998247462,-500.0,0.0001378,2]
[353723879,1739998247472,-620.79999931,0.0001378,2]
[353723881,1739998247481,-500.0,0.0001378,2]
[353723883,1739998247492,-500.0,0.0001378,2]
[353723885,1739998247501,-506.71201923,0.0001378,2]
[353723887,1739998247511,-500.0,0.0001378,2]
[353723889,1739998247521,-608.41620437,0.0001378,2]
[353723891,1739998247531,-500.0,0.0001378,2]
[353723893,1739998247540,-500.0,0.0001378,2]
[353723895,1739998247550,-500.0,0.0001378,2]
[353723897,1739998247559,-724.13,0.0001378,2]
[353723899,1739998247569,-500.0,0.0001378,2]
[353723901,1739998247578,-397.87883305,0.0001378,2]
[353723903,1739998247587,-500.0,0.0001378,2]
[353723905,1739998247598,-501.37127851,0.0001378,2]
[353723907,1739998247607,-253.21903427,0.0001378,2]
[353723909,1739998247617,-500.0,0.0001378,2]
[353723911,1739998247627,-500.0,0.0001378,2]
[353723913,1739998247636,-500.0,0.0001378,2]
[353723915,1739998247645,-500.0,0.0001378,2]
[353723917,1739998247654,-500.0,0.0001378,2]
[353723919,1739998247664,-500.0,0.0001378,2]
[353723921,1739998247673,-623.08514671,0.0001378,2]
[353723923,1739998247683,-500.0,0.0001378,2]
[353723925,1739998247693,-500.0,0.0001378,2]
[353723927,1739998247702,-505.78158092,0.0001378,2]
[353723929,1739998247711,-500.4899259,0.0001378,2]
[353723931,1739998247720,-500.0,0.0001378,2]
[353723933,1739998247730,-500.0,0.0001378,2]
[353723935,1739998247739,-500.0,0.0001378,2]
[353723937,1739998247749,-500.0,0.0001378,2]
[353723939,1739998247758,-686.46,0.0001378,2]
[353723941,1739998247767,-500.0,0.0001378,2]
[353723943,1739998247776,-500.0,0.0001378,2]
[353723945,1739998247786,-504.73725796,0.0001378,2]
[353723947,1739998247795,-376.44,0.0001378,2]
[353723949,1739998247805,-500.0,0.0001378,2]
[353723951,1739998247815,-501.72588545,0.0001378,2]
[353723954,1739998247825,-500.0,0.0001378,2]
[353723956,1739998247834,-500.0,0.0001378,2]
[353723957,1739998247843,-8858.9,0.0001378,2]
[353723959,1739998247853,-584.99,0.0001378,2]
[353723962,1739998247863,-500.0,0.0001378,2]
[353723964,1739998247873,-500.0,0.0001378,2]
[353723965,1739998247885,-500.0,0.0001378,2]
[353723967,1739998247894,-826.72,0.0001378,2]
[353723969,1739998247904,-500.0,0.0001378,2]
[353723971,1739998247914,-500.0,0.0001378,2]
[353723974,1739998247923,-500.0,0.0001378,2]
[353723976,1739998247933,-823.17,0.0001378,2]
[353723977,1739998247942,-500.0,0.0001378,2]
[353723980,1739998247953,-500.0,0.0001378,2]
[353723982,1739998247963,-500.0,0.0001378,2]
[353723983,1739998247973,-500.0,0.0001378,2]
[353723984,1739998247983,-500.0,0.0001378,2]
[353723985,1739998247993,-500.0,0.0001378,2]
[353723986,1739998248002,-974.98,0.0001378,2]
[353723987,1739998248012,-500.0,0.0001378,2]
[353723989,1739998248021,-500.0,0.0001378,2]
[353723991,1739998248030,-500.0,0.0001378,2]
[353723993,1739998248040,-500.0,0.0001378,2]
[353723995,1739998248051,-500.0,0.0001378,2]
[353723997,1739998248060,-500.0,0.0001378,2]
[353723999,1739998248069,-500.0,0.0001378,2]
[353724001,1739998248079,-618.32541929,0.0001378,2]
[353724003,1739998248088,-2651.57,0.0001378,2]
[353724005,1739998248097,-500.0,0.0001378,2]
[353724007,1739998248107,-500.0,0.0001378,2]
[353724009,1739998248116,-500.0,0.0001378,2]
[353724011,1739998248126,-530.92,0.0001378,2]
[353724013,1739998248136,-500.0,0.0001378,2]
[353724016,1739998248145,-605.78,0.0001378,2]
[353724018,1739998248155,-522.91996092,0.0001378,2]
[353724020,1739998248164,-500.0,0.0001378,2]
[353724022,1739998248173,-500.0,0.0001378,2]
[353724024,1739998248183,-960.62,0.0001378,2]
[353724026,1739998248192,-500.0,0.0001378,2]
[353724028,1739998248202,-500.0,0.0001378,2]
[353724030,1739998248211,-500.0,0.0001378,2]
[353724032,1739998248220,-502.97796487,0.0001378,2]
[353724034,1739998248230,-635.08690471,0.0001378,2]
[353724036,1739998248240,-500.0,0.0001378,2]
[353724038,1739998248250,-520.47,0.0001378,2]
[353724040,1739998248259,-500.0,0.0001378,2]
[353724042,1739998248268,-514.43,0.0001378,2]
[353724044,1739998248277,-500.0,0.0001378,2]
[353724046,1739998248287,-502.65064389,0.0001378,2]
[353724048,1739998248296,-500.0,0.0001378,2]
[353724050,1739998248306,-614.69267381,0.0001378,2]
[353724052,1739998248314,-500.0,0.0001378,2]
[353724054,1739998248323,-500.0,0.0001378,2]
[353724056,1739998248333,-500.0,0.0001378,2]
[353724058,1739998248342,-500.0,0.0001378,2]
[353724060,1739998248351,-500.0,0.0001378,2]
[353724062,1739998248360,-500.0,0.0001378,2]
[353724064,1739998248370,-556.45,0.0001378,2]
[353724066,1739998248379,-501.99398181,0.0001378,2]
[353724068,1739998248388,-500.0,0.0001378,2]
[353724070,1739998248397,-2343.02,0.0001378,2]
[353724072,1739998248406,-500.0,0.0001378,2]
[353724074,1739998248416,-531.73676868,0.0001378,2]
[353724076,1739998248425,-500.0,0.0001378,2]
[353724078,1739998248434,-500.0,0.0001378,2]
[353724080,1739998248444,-500.0,0.0001378,2]
[353724082,1739998248454,-500.0,0.0001378,2]
[353724084,1739998248464,-500.0,0.0001378,2]
[353724093,1739998248539,-500.0,0.0001378,2]
[353724095,1739998248549,-5829.82,0.0001378,2]
[353724097,1739998248558,-2086.58,0.0001378,2]
[353724099,1739998248567,-500.0,0.0001378,2]
[353724101,1739998248577,-941.7,0.0001378,2]
[353724103,1739998248586,-500.0,0.0001378,2]
[353724105,1739998248596,-1298.13,0.0001378,2]
[353724107,1739998248606,-500.0,0.0001378,2]
[353724109,1739998248615,-500.0,0.0001378,2]
[353724111,1739998248625,-895.31,0.0001378,2]
[353724113,1739998248634,-500.0,0.0001378,2]
[353724115,1739998248644,-500.0,0.0001378,2]
[353724117,1739998248653,-1140.92,0.0001378,2]
[353724119,1739998248662,-2373.44,0.0001378,2]
[353724121,1739998248672,-500.0,0.0001378,2]
[353724123,1739998248681,-25588.85,0.0001378,2]
[353724125,1739998248690,-501.6861473,0.0001378,2]
[353724127,1739998248700,-500.0,0.0001378,2]
[353724130,1739998248710,-500.0,0.0001378,2]
[353724132,1739998248719,-500.0,0.0001378,2]
[353724134,1739998248729,-544.6114083,0.0001378,2]
[353724136,1739998248739,-500.0,0.0001378,2]
[353724138,1739998248748,-1098.92,0.0001378,2]
[353724140,1739998248757,-500.0,0.0001378,2]
[353724142,1739998248767,-642.51,0.0001378,2]
[353724144,1739998248777,-11131.15,0.0001378,2]
[353724146,1739998248786,-500.0,0.0001378,2]
[353724148,1739998248795,-500.0,0.0001378,2]
[353724149,1739998248805,-1481.01,0.0001378,2]
[353724152,1739998248815,-500.0,0.0001378,2]
[353724154,1739998248826,-2331.82,0.0001378,2]
[353724156,1739998248835,-840.9,0.0001378,2]
[353724158,1739998248845,-500.0,0.0001378,2]
[353724160,1739998248856,-500.0,0.0001378,2]
[353724162,1739998248866,-500.0,0.0001378,2]
[353724164,1739998248878,-500.0,0.0001378,2]
[353724166,1739998248888,-1405.2,0.0001378,2]
[353724168,1739998248897,-500.0,0.0001378,2]
[353724170,1739998248906,-500.0,0.0001378,2]
[353724172,1739998248916,-1355.31,0.0001378,2]
[353724174,1739998248925,-500.0,0.0001378,2]
[353724176,1739998248935,-2081.89,0.0001378,2]
[353724178,1739998248945,-1273.09,0.0001378,2]
[353724180,1739998248956,-500.0,0.0001378,2]
[353724182,1739998248967,-500.0,0.0001378,2]
[353724184,1739998248976,-500.0,0.0001378,2]
[353724186,1739998248986,-3658.91,0.0001378,2]
[353724188,1739998248995,-500.0,0.0001378,2]
[353724190,1739998249005,-500.0,0.0001378,2]
[353724192,1739998249015,-500.0,0.0001378,2]
[353724195,1739998249029,-446.09442365,0.0001378,2]
[353724198,1739998249052,-1053.16,0.0001378,2]
[353724201,1739998249069,-500.0,0.0001378,2]
[353724204,1739998249089,-559.97,0.0001378,2]
[353724207,1739998249111,-500.0,0.0001378,2]
[353724211,1739998249130,-500.0,0.0001378,2]
[353724214,1739998249148,-558.31,0.0001378,2]
[353724216,1739998249164,-285.08607143,0.0001378,2]
[353724219,1739998249178,-500.0,0.0001378,2]
[353724222,1739998249198,-500.0,0.0001378,2]
[353724225,1739998249218,-500.0,0.0001378,2]
[353724228,1739998249234,-500.0,0.0001378,2]
[353724230,1739998249249,-339.4796608,0.0001378,2]
[353724233,1739998249269,-500.0,0.0001378,2]
[353724236,1739998249283,-500.0,0.0001378,2]
[353724239,1739998249299,-500.0,0.0001378,2]
[353724241,1739998249313,-500.0,0.0001378,2]
[353724244,1739998249328,-510.57326734,0.0001378,2]
[353724246,1739998249342,-500.0,0.0001378,2]
[353724249,1739998249357,-2610.53,0.0001378,2]
[353724251,1739998249372,-500.0,0.0001378,2]
[353724254,1739998249387,-506.14088235,0.0001378,2]
[353724256,1739998249401,-500.0,0.0001378,2]
[353724259,1739998249415,-1417.44,0.0001378,2]
[353724261,1739998249429,-500.0,0.0001378,2]
[353724264,1739998249444,-500.0,0.0001378,2]
[353724266,1739998249458,-500.0,0.0001378,2]
[353724269,1739998249471,-500.0,0.0001378,2]
[353724271,1739998249486,-1045.6,0.0001378,2]
[353724274,1739998249501,-1307.94,0.0001378,2]
[353724277,1739998249516,-501.67176249,0.0001378,2]
[353724279,1739998249529,-500.0,0.0001378,2]
[353724282,1739998249543,-151.0,0.000138,2]
[353724284,1739998249559,-151.0,0.000138,2]
[353724287,1739998249574,-151.0,0.000138,2]
[353724290,1739998249588,-356.12187364,0.00013804,2]
[353724292,1739998249603,-500.0,0.00013863,2]
[353724295,1739998249618,-500.0,0.00013863,2]
[353724297,1739998249632,-500.0,0.00013863,2]
[353724300,1739998249647,-500.0,0.00013863,2]
[353724302,1739998249661,-500.0,0.00013863,2]
[353724305,1739998249676,-500.0,0.00013863,2]
[353724308,1739998249689,-500.0,0.00013863,2]
[353724310,1739998249704,-500.0,0.00013863,2]
[353724313,1739998249718,-500.0,0.00013863,2]
[353724315,1739998249732,-500.0,0.00013863,2]
[353724318,1739998249746,-249.69230836,0.00013863,2]
[353724320,1739998249761,-500.0,0.00013863,2]
[353724322,1739998249771,-500.0,0.00013863,2]
[353724336,1739998249886,-500.0,0.00013863,2]
[353724339,1739998249904,-500.0,0.00013863,2]
[353724341,1739998249915,-500.0,0.00013863,2]
[353724343,1739998249924,-500.0,0.00013863,2]
[353724345,1739998249933,-500.0,0.00013863,2]
[353724347,1739998249943,-500.0,0.00013863,2]
[353724349,1739998249954,-500.0,0.00013863,2]
[353724351,1739998249963,-500.0,0.00013863,2]
[353724353,1739998249972,-523.0185608,0.00013863,2]
[353724355,1739998249982,-500.0,0.00013863,2]
[353724357,1739998249991,-500.0,0.00013863,2]
[353724359,1739998250000,-266.75724183,0.00013863,2]
[353724361,1739998250010,-500.0,0.00013863,2]
[353724363,1739998250019,-500.0,0.00013863,2]
[353724365,1739998250028,-500.0,0.00013863,2]
[353724367,1739998250037,-500.0,0.00013863,2]
[353724369,1739998250047,-500.0,0.00013863,2]
[353724371,1739998250056,-318.73732323,0.00013863,2]
[353724373,1739998250065,-521.80072586,0.00013863,2]
[353724375,1739998250074,-500.0,0.00013863,2]
[353724377,1739998250084,-500.0,0.00013863,2]
[353724379,1739998250093,-500.0,0.00013863,2]
[353724381,1739998250102,-500.0,0.00013863,2]
[353724383,1739998250111,-500.0,0.00013863,2]
[353724385,1739998250121,-284.32746956,0.00013863,2]
[353724386,1739998250130,-500.0,0.00013863,2]
[353724388,1739998250139,-500.0,0.00013863,2]
[353724390,1739998250148,-191.37906272,0.00013863,2]
[353724392,1739998250158,-500.0,0.00013863,2]
[353724394,1739998250167,-500.0,0.00013863,2]
[353724396,1739998250176,-500.0,0.00013863,2]
[353724398,1739998250186,-500.0,0.00013863,2]
[353724400,1739998250195,-500.0,0.00013863,2]
[353724402,1739998250204,-500.0,0.00013863,2]
[353724404,1739998250213,-500.0,0.00013863,2]
[353724406,1739998250222,-500.0,0.00013863,2]
[353724408,1739998250231,-505.43319536,0.00013863,2]
[353724410,1739998250242,-509.18,0.00013863,2]
[353724412,1739998250251,-500.0,0.00013863,2]
[353724414,1739998250260,-500.0,0.00013863,2]
[353724416,1739998250269,-500.0,0.00013863,2]
[353724418,1739998250278,-500.0,0.00013863,2]
[353724420,1739998250288,-500.0,0.00013863,2]
[353724422,1739998250297,-174.69,0.00013863,2]
[353724424,1739998250308,-500.0,0.00013863,2]
[353724426,1739998250319,-500.0,0.00013863,2]
[353724428,1739998250331,-501.0315484,0.00013863,2]
[353724430,1739998250341,-500.0,0.00013863,2]
[353724432,1739998250350,-500.0,0.00013863,2]
[353724434,1739998250360,-500.0,0.00013863,2]
[353724436,1739998250369,-500.0,0.00013863,2]
[353724438,1739998250379,-500.0,0.00013863,2]
[353724440,1739998250388,-501.01884875,0.00013863,2]
[353724442,1739998250398,-181.86900916,0.00013863,2]
[353724444,1739998250408,-500.0,0.00013863,2]
[353724446,1739998250419,-735.72,0.00013863,2]
[353724448,1739998250428,-221.51707606,0.00013863,2]
[353724450,1739998250439,-500.0,0.00013863,2]
[353724452,1739998250448,-500.0,0.00013863,2]
[353724454,1739998250457,-503.31,0.00013863,2]
[353724456,1739998250467,-500.0,0.00013863,2]
[353724458,1739998250476,-500.0,0.00013863,2]
[353724460,1739998250485,-500.0,0.00013863,2]
[353724462,1739998250494,-500.0,0.00013863,2]
[353724464,1739998250503,-500.0,0.00013863,2]
[353724466,1739998250513,-502.27547789,0.00013863,2]
[353724468,1739998250522,-500.0,0.00013863,2]
[353724470,1739998250531,-500.0,0.00013863,2]
[353724472,1739998250540,-500.0,0.00013863,2]
[353724474,1739998250549,-500.0,0.00013863,2]
[353724476,1739998250559,-500.0,0.00013863,2]
[353724478,1739998250568,-500.0,0.00013863,2]
[353724480,1739998250577,-500.0,0.00013863,2]
[353724482,1739998250586,-501.16237574,0.00013863,2]
[353724484,1739998250596,-532.29,0.00013863,2]
[353724486,1739998250606,-500.0,0.00013863,2]
[353724488,1739998250615,-511.23110889,0.00013863,2]
[353724490,1739998250624,-500.0,0.00013863,2]
[353724492,1739998250634,-770.11,0.00013863,2]
[353724494,1739998250642,-500.0,0.00013863,2]
[353724496,1739998250651,-500.0,0.00013863,2]
[353724498,1739998250661,-500.0,0.00013863,2]
[353724500,1739998250670,-502.92828678,0.00013863,2]
[353724502,1739998250679,-500.0,0.00013863,2]
[353724504,1739998250689,-500.0,0.00013863,2]
[353724506,1739998250698,-500.0,0.00013863,2]
[353724508,1739998250707,-500.0,0.00013863,2]
[353724510,1739998250715,-500.0,0.00013863,2]
[353724511,1739998250724,-500.0,0.00013863,2]
[353724513,1739998250734,-500.0,0.00013863,2]
[353724515,1739998250743,-500.0,0.00013863,2]
[353724517,1739998250752,-724.13,0.00013863,2]
[353724519,1739998250761,-500.0,0.00013863,2]
[353724521,1739998250770,-500.0,0.00013863,2]
[353724523,1739998250779,-500.0,0.00013863,2]
[353724525,1739998250789,-500.0,0.00013863,2]
[353724527,1739998250798,-500.0,0.00013863,2]
[353724529,1739998250807,-500.0,0.00013863,2]
[353724531,1739998250816,-500.0,0.00013863,2]
[353724533,1739998250826,-500.0,0.00013863,2]
[353724535,1739998250835,-500.0,0.00013863,2]
[353724537,1739998250845,-500.0,0.00013863,2]
[353724539,1739998250854,-500.0,0.00013863,2]
[353724541,1739998250864,-686.46,0.00013863,2]
[353724543,1739998250874,-590.01978453,0.00013863,2]
[353724545,1739998250886,-500.0,0.00013863,2]
[353724547,1739998250897,-500.0,0.00013863,2]
[353724549,1739998250906,-500.0,0.00013863,2]
[353724551,1739998250916,-500.0,0.00013863,2]
[353724553,1739998250927,-8858.9,0.00013863,2]
[353724555,1739998250936,-584.99,0.00013863,2]
[353724557,1739998250947,-500.0,0.00013863,2]
[353724559,1739998250959,-229.8,0.00013863,2]
[353724561,1739998250968,-500.0,0.00013863,2]
[353724563,1739998250978,-826.72,0.00013863,2]
[353724565,1739998250989,-500.0,0.00013863,2]
[353724567,1739998250998,-500.0,0.00013863,2]
[353724569,1739998251007,-823.17,0.00013863,2]
[353724571,1739998251017,-500.0,0.00013863,2]
[353724573,1739998251027,-524.56172416,0.00013863,2]
[353724575,1739998251036,-504.76265299,0.00013863,2]
[353724577,1739998251046,-500.0,0.00013863,2]
[353724579,1739998251055,-500.0,0.00013863,2]
[353724581,1739998251065,-500.808205,0.00013863,2]
[353724583,1739998251075,-974.98,0.00013863,2]
[353724585,1739998251085,-500.0,0.00013863,2]
[353724587,1739998251095,-500.0,0.00013863,2]
[353724589,1739998251104,-500.0,0.00013863,2]
[353724591,1739998251113,-500.0,0.00013863,2]
[353724593,1739998251123,-353.66768895,0.00013863,2]
[353724595,1739998251132,-500.0,0.00013863,2]
[353724597,1739998251141,-2651.57,0.00013863,2]
[353724599,1739998251150,-500.0,0.00013863,2]
[353724601,1739998251160,-500.0,0.00013863,2]
[353724603,1739998251170,-500.0,0.00013863,2]
[353724605,1739998251179,-530.92,0.00013863,2]
[353724607,1739998251189,-500.0,0.00013863,2]
[353724609,1739998251199,-605.78,0.00013863,2]
[353724611,1739998251208,-525.17211004,0.00013863,2]
[353724613,1739998251218,-500.0,0.00013863,2]
[353724615,1739998251227,-960.62,0.00013863,2]
[353724617,1739998251237,-501.15493272,0.00013863,2]
[353724619,1739998251246,-500.0,0.00013863,2]
[353724621,1739998251256,-500.0,0.00013863,2]
[353724623,1739998251266,-520.47,0.00013863,2]
[353724625,1739998251275,-500.0,0.00013863,2]
[353724627,1739998251284,-514.43,0.00013863,2]
[353724629,1739998251293,-500.0,0.00013863,2]
[353724631,1739998251303,-500.0,0.00013863,2]
[353724633,1739998251312,-504.58254099,0.00013863,2]
[353724635,1739998251321,-500.0,0.00013863,2]
[353724637,1739998251330,-500.0,0.00013863,2]
[353724639,1739998251340,-500.0,0.00013863,2]
[353724641,1739998251349,-500.0,0.00013863,2]
[353724643,1739998251359,-500.0,0.00013863,2]
[353724645,1739998251368,-556.45,0.00013863,2]
[353724647,1739998251377,-500.0,0.00013863,2]
[353724649,1739998251387,-2343.02,0.00013863,2]
[353724651,1739998251396,-500.0,0.00013863,2]
[353724653,1739998251406,-500.0,0.00013863,2]
[353724655,1739998251416,-500.0,0.00013863,2]
[353724665,1739998251502,-500.0,0.00013863,2]
[353724667,1739998251513,-500.0,0.00013863,2]
[353724669,1739998251522,-500.0,0.00013863,2]
[353724671,1739998251531,-5829.82,0.00013863,2]
[353724673,1739998251541,-2086.58,0.00013863,2]
[353724675,1739998251551,-500.0,0.00013863,2]
[353724677,1739998251561,-941.7,0.00013863,2]
[353724679,1739998251570,-500.0,0.00013863,2]
[353724681,1739998251580,-1298.13,0.00013863,2]
[353724683,1739998251591,-500.0,0.00013863,2]
[353724685,1739998251602,-895.31,0.00013863,2]
[353724687,1739998251612,-1140.92,0.00013863,2]
[353724689,1739998251622,-2373.44,0.00013863,2]
[353724691,1739998251631,-500.0,0.00013863,2]
[353724693,1739998251640,-25588.85,0.00013863,2]
[353724695,1739998251650,-500.0,0.00013863,2]
[353724697,1739998251659,-500.0,0.00013863,2]
[353724699,1739998251669,-500.0,0.00013863,2]
[353724701,1739998251679,-1098.92,0.00013863,2]
[353724703,1739998251688,-500.0,0.00013863,2]
[353724705,1739998251697,-642.51,0.00013863,2]
[353724707,1739998251707,-11131.15,0.00013863,2]
[353724709,1739998251717,-500.0,0.00013863,2]
[353724711,1739998251727,-1481.01,0.00013863,2]
[353724713,1739998251736,-2331.82,0.00013863,2]
[353724715,1739998251745,-840.9,0.00013863,2]
[353724717,1739998251755,-500.0,0.00013863,2]
[353724719,1739998251764,-501.11275712,0.00013863,2]
[353724721,1739998251774,-1405.2,0.00013863,2]
[353724723,1739998251783,-500.0,0.00013863,2]
[353724725,1739998251792,-371.3578521,0.00013863,2]
[353724727,1739998251801,-500.0,0.00013863,2]
[353724729,1739998251810,-1355.31,0.00013863,2]
[353724731,1739998251820,-500.0,0.00013863,2]
[353724733,1739998251829,-2081.89,0.00013863,2]
[353724735,1739998251839,-1273.09,0.00013863,2]
[353724736,1739998251848,-500.0,0.00013863,2]
[353724738,1739998251857,-500.0,0.00013863,2]
[353724740,1739998251867,-500.0,0.00013863,2]
[353724742,1739998251881,-3658.91,0.00013863,2]
[353724744,1739998251891,-500.0,0.00013863,2]